bitfinex/quotes_BTCUSD_20251230
["timestamp","ask_amount","ask_price","bid_price","bid_amount"]
[1767128291818,0.01137009,87950.0,87942.0,0.000106]
[1767128292092,0.0114,87951.0,87942.0,0.000106]
[1767128293996,0.01137048,87947.0,87942.0,0.000106]
[1767128294199,0.000106,87942.0,87932.0,0.0114]
[1767128294346,0.017,87946.0,87932.0,0.01145265]
[1767128294546,0.02837061,87946.0,87932.0,0.01145265]
[1767128294748,0.017,87946.0,87932.0,0.01145265]
[1767128295801,0.0114,87945.0,87932.0,0.01145265]
[1767128296963,0.0114,87945.0,87932.0,0.16074265]
[1767128299352,0.04067743,87960.0,87932.0,0.01145265]
[1767128299545,0.1318,88005.0,87932.0,0.01145265]
[1767128299546,1e-08,87973.0,87951.0,0.14929]
[1767128299727,1e-08,87973.0,87961.0,0.14854784]
[1767128299930,1e-08,87973.0,87963.0,0.14929]
[1767128300316,1e-08,87973.0,87964.0,0.06151678]
[1767128300486,1e-08,87973.0,87963.0,0.13729]
[1767128300879,0.00030354,87970.0,87963.0,0.13729]
[1767128304114,0.00030354,87970.0,87963.0,0.1365482]
[1767128306944,0.00030354,87970.0,87963.0,0.13487393]
[1767128307701,0.00030354,87970.0,87963.0,0.10787393]
[1767128311467,0.01057621,87969.0,87963.0,0.10787393]
[1767128311696,0.00030354,87970.0,87963.0,0.10787393]
[1767128311895,0.01057621,87969.0,87963.0,0.10787393]
[1767128312169,0.00030354,87970.0,87963.0,0.10787393]
[1767128312394,0.01057507,87969.0,87963.0,0.10000972]
[1767128312604,0.00030354,87970.0,87963.0,0.10000972]
[1767128312794,0.01057506,87969.0,87963.0,0.10000972]
[1767128312991,0.00030354,87970.0,87963.0,0.10000972]
[1767128313703,0.01057422,87969.0,87963.0,0.10000972]
[1767128313908,9.724e-05,87970.0,87963.0,0.10000972]
[1767128314113,0.01090722,87969.0,87963.0,0.10000972]
[1767128314431,0.000333,87969.0,87963.0,0.10000972]
[1767128314798,0.01057415,87968.0,87963.0,0.08600972]
[1767128315035,0.000333,87968.0,87963.0,0.08600972]
[1767128315953,9.724e-05,87970.0,87963.0,0.08600972]
[1767128316116,0.01057533,87969.0,87963.0,0.08600972]
[1767128316447,9.724e-05,87970.0,87963.0,0.08600972]
[1767128316596,0.01057537,87969.0,87963.0,0.08600972]
[1767128316796,9.724e-05,87970.0,87963.0,0.08600972]
[1767128316998,0.01057537,87969.0,87963.0,0.08600972]
[1767128317202,9.724e-05,87970.0,87963.0,0.08600972]
[1767128317406,0.01057509,87969.0,87963.0,0.08600972]
[1767128317607,9.724e-05,87970.0,87963.0,0.08600972]
[1767128317815,0.01057509,87969.0,87963.0,0.08600972]
[1767128318132,9.724e-05,87970.0,87963.0,0.08600972]
[1767128318335,0.01057524,87969.0,87963.0,0.08600972]
[1767128318566,9.724e-05,87970.0,87963.0,0.08600972]
[1767128318767,0.01057524,87969.0,87963.0,0.08600972]
[1767128319048,0.13607,87978.0,87963.0,0.08600972]
[1767128319049,0.01904918,87977.0,87963.0,0.00974097]
[1767128319243,0.01904918,87977.0,87962.0,0.0114]
[1767128319244,0.01904918,87977.0,87970.0,0.11857561]
[1767128319245,0.01057604,87976.0,87970.0,0.11857561]
[1767128319393,6.483e-05,87977.0,87971.0,0.011067]
[1767128319595,0.01136764,87969.0,87964.0,0.0114]
[1767128319774,0.00055,87971.0,87957.0,0.0114]
[1767128319775,0.13607,87968.0,87957.0,0.0114]
[1767128319974,0.14743777,87968.0,87957.0,0.0114]
[1767128320199,0.01136789,87967.0,87957.0,0.0114]
[1767128320600,0.01136789,87967.0,87952.0,0.0001517]
[1767128320601,0.00055,87957.0,87952.0,0.0001517]
[1767128321282,0.13607,87962.0,87952.0,0.0001517]
[1767128323765,0.14743854,87962.0,87952.0,0.0001517]
[1767128324062,0.13607,87962.0,87952.0,0.0001517]
[1767128324261,0.14743854,87962.0,87952.0,0.0001517]
[1767128324440,0.13607,87962.0,87952.0,0.0001517]
[1767128325330,0.01136815,87965.0,87952.0,0.0001517]
[1767128325760,0.14743802,87966.0,87952.0,0.0001517]
[1767128326516,0.13607,87966.0,87952.0,0.0001517]
[1767128326713,0.0114,87965.0,87952.0,0.0001517]
[1767128326918,0.0114,87965.0,87953.0,0.01608417]
[1767128329321,0.06820473,87971.0,87953.0,0.01608417]
[1767128329322,0.28838,87973.0,87965.0,0.000549]
[1767128329491,0.0114,87967.0,87960.0,0.29513943]
[1767128329695,0.0114,87967.0,87960.0,0.32626179]
[1767128330061,0.0114,87973.0,87960.0,0.32626179]
[1767128330465,6.483e-05,87977.0,87961.0,0.29686]
[1767128330669,6.483e-05,87977.0,87961.0,0.295761]
[1767128330892,0.01136673,87976.0,87961.0,0.295761]
[1767128331111,0.01136673,87976.0,87960.0,0.03112236]
[1767128331112,6.483e-05,87977.0,87962.0,0.33068834]
[1767128331303,0.03045879,87983.0,87977.0,0.00048517]
[1767128331507,0.01060049,87982.0,87977.0,0.00048517]
[1767128331708,0.01060049,87981.0,87970.0,0.30826]
[1767128331914,0.01060049,87980.0,87970.0,0.29326]
[1767128332114,0.01060049,87979.0,87972.0,0.29686]
[1767128332305,0.01060049,87978.0,87972.0,0.29686]
[1767128332485,0.01060049,87977.0,87972.0,0.29686]
[1767128332693,0.01011649,87976.0,87972.0,0.29686]
[1767128332895,0.0001517,87984.0,87972.0,0.29686]
[1767128333092,0.0001517,87984.0,87973.0,0.0337586]
[1767128333288,0.0001517,87984.0,87972.0,0.29686]
[1767128333289,6.5e-05,87973.0,87972.0,0.29686]
[1767128333501,0.0001517,87984.0,87972.0,0.29686]
[1767128333747,0.0001517,87984.0,87970.0,0.0114]
[1767128333963,0.0115174,87984.0,87970.0,0.0114]
[1767128334167,0.0001517,87984.0,87970.0,0.0114]
[1767128334308,0.0115174,87984.0,87970.0,0.0114]
[1767128334719,0.01136583,87983.0,87970.0,0.0114]
[1767128335270,0.03045879,87982.0,87970.0,0.0114]
[1767128335964,0.01136621,87980.0,87970.0,0.0114]
[1767128336129,0.28838,87980.0,87970.0,0.0114]
[1767128336341,0.04182475,87982.0,87970.0,0.0114]
[1767128336643,0.01136596,87982.0,87970.0,0.0114]
[1767128337673,0.01136609,87981.0,87970.0,0.0114]
[1767128337870,0.04182475,87982.0,87970.0,0.0114]
[1767128338121,0.01136596,87982.0,87970.0,0.0114]
[1767128338451,0.04182462,87983.0,87970.0,0.0114]
[1767128338742,0.01136596,87982.0,87970.0,0.0114]
[1767128338888,0.01136583,87983.0,87968.0,0.0114]
[1767128339091,0.01136583,87983.0,87968.0,0.01146483]
[1767128339812,0.06834636,87984.0,87968.0,0.01146483]
[1767128340011,0.0001517,87984.0,87968.0,0.01146483]
[1767128340211,0.04197619,87984.0,87968.0,0.01146483]
[1767128340410,0.000549,87968.0,87952.0,0.2779117]
[1767128340576,0.29966,87969.0,87953.0,0.0114]
[1767128340774,0.29966,87969.0,87954.0,0.02894089]
[1767128341142,0.31102764,87969.0,87953.0,0.0114]
[1767128341353,0.29966,87969.0,87953.0,0.0114]
[1767128341510,0.29966,87969.0,87953.0,0.28916]
[1767128342304,0.05,87975.0,87969.0,0.00055]
[1767128342771,0.05,87975.0,87965.0,0.27776]
[1767128343055,0.05,87975.0,87966.0,0.027776]
[1767128343261,0.02440795,87974.0,87967.0,0.27776]
[1767128343414,0.02385795,87974.0,87967.0,0.27776]
[1767128344672,0.01059659,87973.0,87967.0,0.27776]
[1767128345122,0.02385795,87974.0,87967.0,0.27776]
[1767128345340,0.02385795,87974.0,87967.0,0.3094536]
[1767128345529,0.02385795,87974.0,87967.0,0.0311446]
[1767128345530,0.03522494,87974.0,87967.0,0.0311446]
[1767128345669,0.02385795,87974.0,87967.0,0.0311446]
[1767128345874,0.03522494,87974.0,87967.0,0.0311446]
[1767128346194,0.06820274,87973.0,87967.0,0.00280943]
[1767128346509,0.06820274,87973.0,87952.0,0.00024894]
[1767128346511,0.29966,87961.0,87952.0,0.00024894]
[1767128346717,0.29966,87961.0,87930.0,0.45447783]
[1767128346718,0.01136828,87964.0,87938.0,0.0114]
[1767128346719,0.000248,87952.0,87938.0,0.0114]
[1767128347010,0.29966,87954.0,87938.0,0.0114]
[1767128347154,0.01059365,87953.0,87938.0,0.0114]
[1767128347354,0.53409118,87960.0,87938.0,0.0114]
[1767128347355,0.31106,87960.0,87943.0,0.30684287]
[1767128347813,0.3224288,87960.0,87943.0,0.30684287]
[1767128348112,0.75413783,87960.0,87943.0,0.30684287]
[1767128348315,0.29966,87960.0,87943.0,0.2779117]
[1767128348459,0.75417145,87960.0,87943.0,0.2779117]
[1767128348859,0.0114,87959.0,87943.0,0.2779117]
[1767128349505,0.75417145,87960.0,87943.0,0.2779117]
[1767128349707,0.45451145,87953.0,87943.0,0.2779117]
[1767128350126,0.06824479,87959.0,87943.0,0.2779117]
[1767128350353,0.06824479,87959.0,87933.0,0.27776]
[1767128350354,0.0003973,87943.0,87933.0,0.27776]
[1767128350571,0.0003973,87943.0,87934.0,0.27796435]
[1767128350763,0.01137087,87944.0,87934.0,0.27796435]
[1767128350914,0.01137087,87944.0,87934.0,0.00020435]
[1767128350915,0.45451145,87944.0,87934.0,0.00020435]
[1767128351275,0.01137126,87941.0,87934.0,0.00020435]
[1767128351485,0.08451642,87943.0,87934.0,0.00020435]
[1767128351486,0.01137113,87942.0,87934.0,0.00020435]
[1767128351839,0.01137113,87942.0,87929.0,0.27776]
[1767128351840,0.01137113,87942.0,87926.0,0.27776]
[1767128351841,0.000204,87934.0,87926.0,0.27776]
[1767128352042,0.00028091,87934.0,87926.0,0.27776]
[1767128352263,7.691e-05,87934.0,87926.0,0.27776]
[1767128353454,7.691e-05,87934.0,87926.0,0.2778872]
[1767128353652,9.1e-07,87934.0,87926.0,0.2778872]
[1767128354461,9.1e-07,87934.0,87927.0,0.27776]
[1767128355245,0.0113697,87953.0,87928.0,0.27776]
[1767128355246,0.01137035,87948.0,87928.0,0.27776]
[1767128355447,0.46591145,87950.0,87931.0,0.27776]
[1767128355646,0.02434412,87949.0,87931.0,0.27776]
[1767128356065,0.0114,87950.0,87931.0,0.27776]
[1767128356290,0.46591145,87950.0,87931.0,0.27776]
[1767128356482,0.0114,87950.0,87931.0,0.27776]
[1767128356690,0.0114,87950.0,87933.0,0.27277]
[1767128356887,0.0114,87950.0,87935.0,0.27277]
[1767128358098,0.0114,87950.0,87935.0,0.25877]
[1767128358702,0.0114,87950.0,87934.0,0.0114]
[1767128358703,0.001023,87935.0,87934.0,0.0114]
[1767128358884,0.307081,87943.0,87934.0,0.0114]
[1767128359086,0.31848009,87950.0,87934.0,0.0114]
[1767128359350,0.01137074,87945.0,87934.0,0.0114]
[1767128360125,0.01137048,87947.0,87934.0,0.0114]
[1767128360342,0.01137048,87947.0,87928.0,0.00035645]
[1767128360343,0.000388,87934.0,87928.0,0.00035645]
[1767128360704,0.30708087,87944.0,87928.0,0.00035645]
[1767128360901,0.01137113,87942.0,87928.0,0.00035645]
[1767128361218,0.29571,87941.0,87928.0,0.00035645]
[1767128361413,0.01137074,87945.0,87929.0,0.27277]
[1767128361601,0.30708061,87946.0,87929.0,0.27277]
[1767128361802,0.01137074,87945.0,87929.0,0.27277]
[1767128362041,0.29571,87946.0,87930.0,0.02846537]
[1767128362247,0.29571,87946.0,87929.0,0.27277]
[1767128364351,0.30708087,87944.0,87928.0,0.00035645]
[1767128364568,0.01137126,87941.0,87928.0,0.00035645]
[1767128364734,0.01137087,87944.0,87928.0,0.00035645]
[1767128364735,0.29571,87940.0,87928.0,0.00035645]
[1767128365286,0.0114,87943.0,87928.0,4.5e-07]
[1767128365405,0.01056267,87942.0,87928.0,4.5e-07]
[1767128365601,0.0114,87943.0,87928.0,0.27277045]
[1767128365808,0.0004,88075.0,87928.0,0.27277045]
[1767128365809,0.03045879,87956.0,87944.0,0.27277]
[1767128366009,0.0002252,87964.0,87947.0,0.27277]
[1767128366224,0.02456032,87964.0,87947.0,0.27277]
[1767128366960,0.0002252,87964.0,87947.0,0.27277]
[1767128367170,0.03045879,87973.0,87945.0,0.0114]
[1767128367171,0.04845563,87975.0,87964.0,0.000225]
[1767128367310,0.04845563,87975.0,87965.0,0.28417]
[1767128368361,0.04881253,87975.0,87965.0,0.28417]
[1767128370354,0.04881253,87975.0,87965.0,0.25977]
[1767128370519,0.04881253,87975.0,87966.0,0.027117]
[1767128371102,0.04881253,87975.0,87967.0,0.0114]
[1767128371303,0.04881253,87975.0,87967.0,0.011207]
[1767128371567,0.04881253,87975.0,87965.0,0.0012]
[1767128371775,0.06017939,87975.0,87963.0,0.27169943]
[1767128372019,0.06017939,87975.0,87953.0,0.04552]
[1767128372020,0.29571,87969.0,87964.0,0.0114]
[1767128372785,0.30707699,87974.0,87964.0,0.0114]
[1767128372981,0.30707712,87973.0,87964.0,0.0114]
[1767128373334,0.29571,87965.0,87934.0,0.0114]
[1767128373451,0.01136802,87966.0,87944.0,0.27277]
[1767128373452,0.0113688,87960.0,87944.0,0.27277]
[1767128373806,0.29177084,87961.0,87949.0,0.0114]
[1767128374161,0.05683999,87967.0,87949.0,0.0114]
[1767128374162,0.29571,87967.0,87950.0,0.27277]
[1767128374565,0.29571,87967.0,87950.0,0.30120462]
[1767128374903,0.0114,87969.0,87950.0,0.30120462]
[1767128375202,0.01136777,87968.0,87950.0,0.30120462]
[1767128375412,0.30707789,87967.0,87950.0,0.30120462]
[1767128375625,0.29571,87967.0,87950.0,0.30120462]
[1767128375787,0.01136815,87965.0,87951.0,0.03127808]
[1767128375988,0.01136802,87966.0,87950.0,0.27277]
[1767128376192,0.29571,87967.0,87950.0,0.27277]
[1767128376397,0.0114,87973.0,87966.0,0.001099]
[1767128376537,0.06819762,87980.0,87966.0,0.001099]
[1767128376745,0.06021253,87975.0,87966.0,0.001099]
[1767128376944,0.06021253,87975.0,87937.0,0.0456962]
[1767128376945,0.04881253,87975.0,87967.0,0.3001569]
[1767128377343,0.04881253,87975.0,87967.0,0.2941569]
[1767128378409,0.07959424,87984.0,87967.0,0.2941569]
[1767128378410,0.0114,87984.0,87975.0,0.000549]
[1767128378555,0.02193499,87983.0,87975.0,0.000549]
[1767128378761,0.02193512,87982.0,87975.0,0.0278809]
[1767128378976,0.01056916,87981.0,87967.0,0.27277]
[1767128379177,0.01056916,87981.0,87937.0,0.0456962]
[1767128379178,0.02193537,87980.0,87937.0,0.0456962]
[1767128379395,0.02193537,87980.0,87954.0,0.27277]
[1767128379396,0.30707647,87978.0,87954.0,0.27277]
[1767128379611,0.29571,87971.0,87954.0,0.27277]
[1767128379829,0.29571,87983.0,87971.0,0.000549]
[1767128380027,0.03491226,87982.0,87971.0,0.000549]
[1767128380221,0.03491226,87981.0,87969.0,0.27277]
[1767128380507,0.00010698,87984.0,87970.0,0.028417]
[1767128380508,0.01056665,87980.0,87970.0,0.028417]
[1767128380718,0.01056665,87979.0,87970.0,0.028417]
[1767128380870,0.01056665,87978.0,87970.0,0.028417]
[1767128381071,0.01056665,87977.0,87970.0,0.028417]
[1767128381311,0.03581513,87984.0,87977.0,0.001099]
[1767128381312,0.02444943,87984.0,87977.0,0.001099]
[1767128381483,0.02193012,87983.0,87977.0,0.001099]
[1767128381795,0.30627429,87982.0,87970.0,0.028417]
[1767128381992,0.03490674,87981.0,87970.0,0.028417]
[1767128382286,0.3176405,87980.0,87961.0,0.27277]
[1767128382472,0.30707647,87978.0,87961.0,0.27277]
[1767128382702,0.29571,87976.0,87962.0,0.0114]
[1767128383153,0.56825478,87980.0,87962.0,0.28417]
[1767128383354,0.01056482,87979.0,87962.0,0.28417]
[1767128383568,0.02434363,87981.0,87963.0,0.028417]
[1767128383768,0.28953572,87980.0,87963.0,0.028417]
[1767128384071,0.01056572,87979.0,87963.0,0.028417]
[1767128384213,0.01056572,87978.0,87963.0,0.028417]
[1767128384542,0.01056572,87978.0,87962.0,0.28417]
[1767128384543,0.01056572,87977.0,87962.0,0.281587]
[1767128384743,0.7332804,87980.0,87963.0,0.07358974]
[1767128384938,0.0105669,87979.0,87963.0,0.07358974]
[1767128385139,0.7332804,87980.0,87964.0,0.28205]
[1767128385347,0.05693549,87984.0,87963.0,0.07358974]
[1767128385348,0.00010698,87984.0,87970.0,0.4543104]
[1767128385544,0.00010698,87984.0,87965.0,0.0114]
[1767128385545,0.0001762,88006.0,87984.0,0.000106]
[1767128385546,0.01136415,87996.0,87984.0,0.000106]
[1767128385742,0.01136402,87997.0,87984.0,0.000106]
[1767128385743,0.01136428,87995.0,87984.0,0.000106]
[1767128385908,0.0248789,87998.0,87983.0,0.28205]
[1767128386113,0.00052986,87998.0,87983.0,0.28205]
[1767128386927,0.27427986,87998.0,87983.0,0.28205]
[1767128387181,0.27427986,87998.0,87983.0,0.311395]
[1767128387993,0.29808935,87997.0,87983.0,0.029345]
[1767128388152,0.27375,87997.0,87983.0,0.029345]
[1767128388356,0.27375,87997.0,87979.0,0.29216]
[1767128389759,0.28511428,87995.0,87979.0,0.29216]
[1767128389958,0.27375,87995.0,87979.0,0.29216]
[1767128390272,0.01136557,87985.0,87965.0,0.0001798]
[1767128390449,0.00052986,87998.0,87965.0,0.0005367]
[1767128390450,0.27375,87977.0,87965.0,0.0005367]
[1767128390938,0.28511596,87982.0,87977.0,0.000549]
[1767128391166,0.28511596,87982.0,87966.0,0.28076]
[1767128391167,0.27375,87982.0,87966.0,0.28076]
[1767128391301,0.28511596,87982.0,87966.0,0.28076]
[1767128391507,0.28511596,87982.0,87967.0,0.02827967]
[1767128391939,0.27375,87982.0,87967.0,0.02827967]
[1767128392249,0.28511609,87981.0,87967.0,0.02827967]
[1767128392395,0.28511634,87979.0,87967.0,0.02827967]
[1767128392849,0.29651634,87979.0,87967.0,0.02827967]
[1767128393151,0.01136647,87978.0,87967.0,0.02827967]
[1767128393554,0.27375,87979.0,87967.0,0.02827967]
[1767128394110,0.27375,87979.0,87965.0,0.0005367]
[1767128394327,0.23871337,87985.0,87965.0,0.0005367]
[1767128394328,0.01136544,87986.0,87979.0,0.000549]
[1767128394528,0.01136531,87987.0,87979.0,0.000549]
[1767128394743,0.01136544,87986.0,87974.0,0.28076]
[1767128394965,0.03574234,87987.0,87974.0,0.28076]
[1767128395159,0.02280544,87986.0,87974.0,0.308836]
[1767128395379,0.02280544,87986.0,87965.0,0.0005367]
[1767128395380,0.27375,87973.0,87965.0,0.0005367]
[1767128395592,0.02439455,87972.0,87955.0,0.28076]
[1767128395738,0.02475117,87972.0,87955.0,0.28076]
[1767128395943,0.02475125,87972.0,87955.0,0.28076]
[1767128396175,0.02475125,87972.0,87956.0,0.02923734]
[1767128396393,0.0113666,87977.0,87956.0,0.02923734]
[1767128396394,0.04070383,87987.0,87972.0,0.28130775]
[1767128396597,0.0113657,87984.0,87972.0,0.28141473]
[1767128396899,0.0113657,87984.0,87972.0,0.27741473]
[1767128397241,0.02280531,87987.0,87972.0,0.27741473]
[1767128397242,0.01136557,87985.0,87972.0,0.27741473]
[1767128397448,0.01059199,87984.0,87973.0,0.02774147]
[1767128397647,0.05206862,87991.0,87973.0,0.02774147]
[1767128397648,0.01059199,87983.0,87974.0,0.28076]
[1767128397871,0.01136466,87992.0,87974.0,0.28076]
[1767128398074,0.01136479,87991.0,87974.0,0.28076]
[1767128398311,0.01136518,87988.0,87974.0,0.28076]
[1767128398514,0.3419433,87986.0,87972.0,0.00010698]
[1767128398761,0.01136621,87980.0,87972.0,9.8e-07]
[1767128398875,0.01136596,87982.0,87972.0,9.8e-07]
[1767128398876,0.01136609,87981.0,87972.0,9.8e-07]
[1767128399240,0.05682296,87993.0,87973.0,0.28076]
[1767128399485,0.28532742,87997.0,87982.0,0.28076]
[1767128399486,0.01136428,87995.0,87982.0,0.28076]
[1767128399703,0.01136428,87995.0,87983.0,0.0280866]
[1767128399905,0.0002134,87997.0,87983.0,0.0280866]
[1767128399906,0.0002134,87997.0,87984.0,0.28076]
[1767128400093,0.2739634,87997.0,87983.0,0.0280866]
[1767128400330,0.0002134,87997.0,87984.0,0.28076]
[1767128400514,0.0002134,87997.0,87983.0,0.0280866]
[1767128400515,0.000443,87984.0,87983.0,0.0280866]
[1767128400658,3e-06,87984.0,87983.0,0.28076]
[1767128400867,0.0002134,87997.0,87983.0,0.28076]
[1767128401489,0.0002134,87997.0,87956.0,0.02923734]
[1767128401490,0.0002134,87997.0,87953.0,1e-08]
[1767128401491,0.01136854,87962.0,87953.0,1e-08]
[1767128401692,0.01136854,87962.0,87940.0,0.0002134]
[1767128401693,0.01136854,87962.0,87914.0,0.00045475]
[1767128401694,0.01136957,87954.0,87930.0,0.23026352]
[1767128401911,0.28511945,87955.0,87932.0,0.28076]
[1767128401912,0.01144,87953.0,87932.0,0.28076]
[1767128402333,0.01136945,87955.0,87932.0,0.2922]
[1767128402555,0.01144,87959.0,87934.0,0.28076]
[1767128402935,6.478e-05,87962.0,87941.0,0.29074]
[1767128403143,0.000426,87964.0,87950.0,0.29074]
[1767128403144,7.8e-07,87964.0,87950.0,0.29074]
[1767128403356,7.8e-07,87964.0,87951.0,0.30218]
[1767128403567,0.25479591,87963.0,87951.0,0.30218]
[1767128404615,0.0113688,87960.0,87951.0,0.29074]
[1767128404810,0.01136932,87956.0,87951.0,0.31984964]
[1767128404929,0.01136932,87956.0,87951.0,0.29074]
[1767128405131,0.01136945,87955.0,87951.0,0.29074]
[1767128405772,0.01136957,87954.0,87951.0,0.29074]
[1767128405971,0.0113697,87953.0,87950.0,0.2910964]
[1767128406196,0.01136764,87969.0,87950.0,0.32135004]
[1767128406369,0.01136802,87966.0,87952.0,0.29074]
[1767128406608,0.06820855,87966.0,87952.0,0.29074]
[1767128406786,0.01136802,87966.0,87952.0,0.29074]
[1767128407122,0.01136906,87964.0,87952.0,0.29074]
[1767128407488,0.01136906,87958.0,87952.0,0.29074]
[1767128407650,0.01136919,87957.0,87951.0,0.01144]
[1767128407865,0.01136932,87956.0,87951.0,0.01144]
[1767128408246,0.01136945,87955.0,87950.0,0.0003564]
[1767128408909,0.01136932,87956.0,87950.0,0.0003564]
[1767128409346,0.01136945,87955.0,87950.0,0.0003564]
[1767128409505,0.25479591,87955.0,87950.0,0.0003564]
[1767128409703,0.26616536,87955.0,87950.0,0.0003564]
[1767128409926,0.01136957,87954.0,87950.0,0.0003564]
[1767128410126,0.26616536,87955.0,87950.0,0.0003564]
[1767128410330,0.26616536,87955.0,87950.0,0.0004564]
[1767128410331,0.25479591,87955.0,87950.0,0.0004564]
[1767128410740,0.0113697,87953.0,87950.0,0.0004564]
[1767128410943,0.26616536,87955.0,87950.0,0.0004564]
[1767128411134,0.25479591,87955.0,87950.0,0.0004564]
[1767128411337,0.01136957,87954.0,87950.0,0.0004564]
[1767128411536,0.25479591,87955.0,87950.0,0.0004564]
[1767128412319,0.25479591,87955.0,87951.0,0.03026364]
[1767128412835,0.25424691,87955.0,87950.0,0.0004564]
[1767128413517,0.25424691,87955.0,87950.0,0.0007564]
[1767128415695,0.25424691,87955.0,87945.0,0.28556578]
[1767128415900,0.25460333,87955.0,87945.0,0.28556578]
[1767128417702,0.25460333,87955.0,87945.0,0.27989]
[1767128417703,3.33e-06,87955.0,87945.0,0.27989]
[1767128417984,3.33e-06,87955.0,87947.0,0.27989]
[1767128427728,3.33e-06,87955.0,87946.0,0.029133]
[1767128428091,3.33e-06,87955.0,87944.0,0.29133]
[1767128428418,3.33e-06,87955.0,87944.0,0.27989]
[1767128428619,3.33e-06,87955.0,87945.0,0.01144]
[1767128429342,3.33e-06,87955.0,87945.0,0.29133]
[1767128431343,0.01060497,87954.0,87945.0,0.29133]
[1767128431544,3.33e-06,87955.0,87947.0,0.27989]
[1767128431845,0.01060498,87954.0,87947.0,0.27989]
[1767128432156,0.01060672,87953.0,87947.0,0.27989]
[1767128432362,3.33e-06,87955.0,87947.0,0.27989]
[1767128432564,0.02138363,87962.0,87947.0,0.27989]
[1767128432770,0.04065119,87980.0,87953.0,0.27989]
[1767128432950,0.32593119,87981.0,87955.0,0.27989]
[1767128433152,0.28528,87981.0,87955.0,0.27989]
[1767128433404,0.28528,87981.0,87957.0,0.27989]
[1767128433984,0.28528,87979.0,87957.0,0.27989]
[1767128434154,0.28528,87977.0,87957.0,0.27989]
[1767128435989,0.28528,87975.0,87957.0,0.27989]
[1767128436529,0.28528,87975.0,87949.0,0.27989]
[1767128436734,0.28528,87975.0,87950.0,0.04264011]
[1767128437048,0.28528,87975.0,87950.0,0.32253011]
[1767128440303,0.28528,87975.0,87951.0,0.27989]
[1767128440636,0.28528,87983.0,87951.0,0.27989]
[1767128442594,0.28528,87983.0,87953.0,0.27989]
[1767128442792,0.28528,87983.0,87950.0,0.87601503]
[1767128442793,0.28528,87983.0,87955.0,0.27989]
[1767128444569,0.01059887,87982.0,87955.0,0.27989]
[1767128444767,0.01059955,87981.0,87955.0,0.27989]
[1767128444992,0.01059955,87980.0,87955.0,0.27989]
[1767128445320,0.01059955,87979.0,87955.0,0.27989]
[1767128445528,0.01059955,87978.0,87957.0,0.27989]
[1767128445686,0.01059955,87977.0,87959.0,0.27989]
[1767128446020,0.02442126,87982.0,87959.0,0.27989]
[1767128446222,0.01059848,87981.0,87959.0,0.27989]
[1767128446428,0.01059848,87980.0,87959.0,0.27989]
[1767128446581,0.01059848,87979.0,87961.0,0.28278]
[1767128446792,0.02442126,87982.0,87961.0,0.28278]
[1767128446793,0.01059848,87978.0,87961.0,0.28278]
[1767128446992,0.02442126,87982.0,87961.0,0.28278]
[1767128447192,0.01059851,87981.0,87961.0,0.28278]
[1767128447392,0.01059851,87980.0,87963.0,0.28278]
[1767128447596,0.02442126,87982.0,87963.0,0.28278]
[1767128447597,0.01059851,87979.0,87963.0,0.28278]
[1767128447814,0.01059851,87978.0,87963.0,0.28278]
[1767128448014,0.01059802,87977.0,87963.0,0.28278]
[1767128448213,0.02442126,87979.0,87965.0,0.28278]
[1767128448397,0.01059768,87978.0,87965.0,0.28278]
[1767128448599,0.01059768,87977.0,87965.0,0.28278]
[1767128448822,0.02442126,87979.0,87965.0,0.28278]
[1767128448973,0.27099,87977.0,87952.0,0.28278]
[1767128449174,0.15768084,87965.0,87953.0,0.04597851]
[1767128449481,0.15768084,87965.0,87954.0,0.01144]
[1767128449707,0.15768084,87965.0,87948.0,0.28278]
[1767128449708,0.27099,87971.0,87948.0,0.28278]
[1767128449900,0.27099,87971.0,87923.0,0.012]
[1767128449901,0.27099,87971.0,87931.0,0.28278]
[1767128449902,0.27154,87948.0,87931.0,0.28278]
[1767128450144,0.27154,87948.0,87932.0,0.01144]
[1767128450145,0.26805671,87948.0,87932.0,0.01144]
[1767128450721,0.26805671,87948.0,87931.0,0.00035642]
[1767128450722,0.30877211,87948.0,87931.0,0.00035642]
[1767128451088,0.26805671,87948.0,87932.0,0.01144]
[1767128453044,0.26805671,87948.0,87931.0,0.00035642]
[1767128453045,0.27942706,87948.0,87931.0,0.00035642]
[1767128453385,0.28236087,87944.0,87931.0,0.00035642]
[1767128453589,0.27099,87944.0,87931.0,0.00035642]
[1767128455547,0.28236087,87944.0,87931.0,0.00035642]
[1767128455747,0.27099,87944.0,87931.0,0.00035642]
[1767128455972,0.28236087,87944.0,87931.0,0.00035642]
[1767128456167,0.27099,87944.0,87931.0,0.00035642]
[1767128456791,0.01057722,87943.0,87931.0,0.00035642]
[1767128456991,0.27099,87944.0,87931.0,0.00035642]
[1767128458755,0.06822261,87948.0,87900.0,0.83368856]
[1767128458756,0.32784688,87941.0,87900.0,0.83368856]
[1767128458911,0.27099,87940.0,87916.0,0.29422]
[1767128459306,0.28236138,87940.0,87916.0,0.29422]
[1767128459545,0.28236138,87940.0,87917.0,0.31223485]
[1767128460198,0.27099,87940.0,87917.0,0.31223485]
[1767128460637,0.01137151,87939.0,87917.0,0.31223485]
[1767128460838,0.29699,87939.0,87917.0,0.31223485]
[1767128461419,0.00035646,87941.0,87939.0,0.000549]
[1767128461618,4.6e-07,87941.0,87939.0,0.000549]
[1767128462031,4.6e-07,87941.0,87935.0,0.01144]
[1767128464315,4.6e-07,87941.0,87936.0,0.01144]
[1767128467059,0.32747407,87969.0,87937.0,0.27737]
[1767128467262,0.32747407,87969.0,87941.0,0.27737]
[1767128467263,0.34332576,87968.0,87941.0,0.27737]
[1767128467454,0.29699,87966.0,87941.0,0.27737]
[1767128467703,0.33188576,87965.0,87941.0,0.27737]
[1767128467928,0.33188576,87965.0,87936.0,0.01144]
[1767128467929,0.29699,87965.0,87943.0,0.27737]
[1767128468102,0.29699,87965.0,87945.0,0.27737]
[1767128469127,0.0001069,87969.0,87945.0,0.27737]
[1767128469477,0.01056252,87968.0,87945.0,0.27737]
[1767128469662,0.02443808,87969.0,87945.0,0.27737]
[1767128469878,0.0001069,87969.0,87947.0,0.27737]
[1767128470440,9e-07,87969.0,87951.0,0.27737]
[1767128470642,9e-07,87969.0,87953.0,0.27737]
[1767128472331,9e-07,87969.0,87952.0,0.05696]
[1767128472332,9e-07,87969.0,87960.0,0.27737]
[1767128472527,9e-07,87969.0,87962.0,0.27737]
[1767128473773,0.297311,87988.0,87962.0,0.27737]